Cogmind - Beta 13 @@@ ROGUE MODE // 2024.04.05 @ 21:54:35 Player: kucifra Result: Destroyed by S-10 Pest with Light Assault Rifle Performance ------------- Evolutions (0) 0 Regions Visited (2) 400 Robots Destroyed (3) 15 Value Destroyed (70) 70 Prototype IDs (0) 0 Alien Tech Used (0) 0 Bonus (0) 0 TOTAL SCORE: 485 Bonus ------- None Cogmind --------- Core Integrity 0/250 Matter 154/300 Energy 99/100 System Corruption 0% Temperature Cool (3) Movement Flying (40) Location -10/Mines Parts ------- > --- POWER (1) -------- (None) > --- PROPULSION (2) --- Flight Unit > --- UTILITY (2) ------ Core Shielding Propulsion Shielding > --- WEAPON (2) ------- (None) > --- INVENTORY (5) ---- Light Treads Heat Sink Core Shielding Peak State ------------ > --- POWER ------------ Light Ion Engine > --- PROPULSION ------- Wheel Wheel > --- UTILITY ---------- Heat Sink Core Shielding > --- WEAPON ----------- Assault Rifle Grenade Launcher > --- INVENTORY -------- Flight Unit Flight Unit Assault Rifle [Rating: 7] Favorites ----------- Power Light Ion Engine Engine Light Ion Engine Propulsion Wheel Wheel Wheel Flight Unit Flight Unit Utility Core Shielding Device Heat Sink Protection Core Shielding Weapon Assault Rifle Ballistic Gun Assault Rifle Launcher Grenade Launcher Special Weapon Mining Laser Build | -11 -10 -10 ------- Run | Yrd Mat Min Slots Evolved . | . . . Power . | . . . Propulsion . | . . . Utility . | . . . Weapon . | . . . Parts Attached 18 | 5 13 . Power 1 | 1 . . Engine 1 | 1 . . Core . | . . . Reactor . | . . . Propulsion 5 | 2 3 . Treads . | . . . Leg . | . . . Wheel 3 | 2 1 . Hover . | . . . Flight 2 | . 2 . Utility 7 | . 7 . Device 3 | . 3 . Storage . | . . . Processor . | . . . Hackware . | . . . Protection 4 | . 4 . Artifact . | . . . Weapon 5 | 2 3 . Energy Gun . | . . . Energy Cannon . | . . . Ballistic Gun 3 | 2 1 . Ballistic Cannon . | . . . Launcher 1 | . 1 . Special Weapon 1 | . 1 . Impact Weapon . | . . . Slashing Weapon . | . . . Piercing Weapon . | . . . Special Melee Weapon . | . . . Unidentified Prototypes . | . . . Parts Lost 9 | . 9 . Power 1 | . 1 . Propulsion 3 | . 3 . Utility 1 | . 1 . Weapon 4 | . 4 . Highest Loss Streak 9 | . 9 . To Critical Strikes . | . . . Average Slot Usage (%) 74 | . 79 42 Engine 10 | . 11 . Wheel 19 | . 22 . Flight 3 | . 1 14 Device 10 | . 12 . Protection 10 | . 7 28 Ballistic Gun 12 | . 14 . Launcher 6 | . 7 . Naked Turns . | . . . Heaviest Build 10 | 7 10 2 Greatest Support 20 | 20 20 4 Greatest Overweight (x) . | . . . Average Overweight (x) . | . . . Largest Inventory Capacity 5 | 5 5 5 Average Capacity 5 | 5 5 5 Most Carried 5 | 4 5 3 Average Carried 3 | 1 3 3 Final Capacity 5 | 5 5 5 Final Carried 3 | 3 3 3 Class Distribution -------------------- 100% | Mutant Dominant Class ---------------- Mutant | -10/Materials Mutant | -10/Mines Resources | -11 -10 -10 ----------- Run | Yrd Mat Min Matter Collected 256 | 256 . . Remotely . | . . . Salvage Created 119 | 37 82 . Parts 8 | 2 6 . Haulers Intercepted 1 | . 1 . Recyclers Shooed . | . . . Parts Field Recycled . | . . . Retrieved Matter . | . . . Parts Self-Destructed . | . . . Prevented . | . . . Kills | -11 -10 -10 ------- Run | Yrd Mat Min Combat Hostiles Destroyed 2 | 1 1 . Guns 2 | 1 1 . Classes Destroyed 2 | 1 1 . Hauler 1 | . 1 . Grunt 2 | 1 1 . Best Kill Streak 1 | 1 1 . Combat Bots Only 1 | 1 1 . Max Kills in Single Turn 1 | 1 1 . Gunslinging . | . . . Exploded . | . . . Melee . | . . . Uniques/NPCs Destroyed . | . . . Combat | -11 -10 -10 -------- Run | Yrd Mat Min Hostile Shots Fired 114 | 2 105 7 Missed 41 | 1 37 3 Damage Taken 825 | 10 782 33 Core 251 | . 222 29 Absorbed by Shields . | . . . Redirected to Shielding 56 | . 52 4 Regen/Repaired (Parts) 10 | . 10 . Core Remaining (%) 100 | 100 . . Volleys Fired 16 | 2 14 . Largest 2 | 2 2 . Hottest 50 | 40 50 . Shots Fired 20 | 4 16 . Gun 19 | 4 15 . Cannon . | . . . Launcher 1 | . 1 . Special . | . . . Kinetic 19 | 4 15 . Thermal . | . . . Explosive 1 | . 1 . Electromagnetic . | . . . Robot Hit Streak 7 | 1 7 . Robot Miss Streak 2 | 1 2 . Penetration Max . | . . . Secondary Targets . | . . . Shots Hit Robots 13 | 2 11 . Core Hits 7 | 2 5 . Critical Kills . | . . . Critical Parts Destroyed . | . . . Critical Strikes . | . . . Melee Attacks . | . . . Impact . | . . . Slashing . | . . . Piercing . | . . . Sneak Attacks . | . . . Combat Hostiles . | . . . Follow-up Attacks . | . . . Damage Inflicted 295 | 22 273 . Guns 186 | 22 164 . Cannons . | . . . Explosions 109 | . 109 . Melee . | . . . Ramming . | . . . Kinetic 186 | 22 164 . Thermal . | . . . Explosive 109 | . 109 . Electromagnetic . | . . . Impact . | . . . Slashing . | . . . Piercing . | . . . Highest Corruption . | . . . Average Corruption . | . . . Corruption Purged . | . . . Corruption Blocked . | . . . Overload Shots . | . . . Overflow Damage . | . . . Projectiles . | . . . Explosions . | . . . Melee . | . . . Knockbacks . | . . . Impact . | . . . Kinetic . | . . . Secondary . | . . . Self-Inflicted Damage 21 | . 21 . Shots 1 | . 1 . Rammed . | . . . Targets Rammed . | . . . Kicked . | . . . Crushed . | . . . Highest Temperature 31 | . 31 . Average Temperature 16 | . 16 . Received Heat Transfer 360 | 6 354 . Siege Activations . | . . . Robots Corrupted . | . . . Combat Hostiles . | . . . Parts Fried . | . . . Impact Corruptions . | . . . Robots Melted . | . . . Combat Hostiles . | . . . Parts Melted . | . . . Heat Transferred . | . . . Parts Sabotaged . | . . . Parts Stolen . | . . . Parts Stripped . | . . . Power Chain Reactions . | . . . Alert | -11 -10 -10 ------- Run | Yrd Mat Min Peak Influence 60 | 20 60 5 Initial 13 | . 13 5 Average 22 | 2 31 5 Maximum Alert Level . | . . . Low Security (%) 100 | 100 100 100 Level 1 . | . . . Level 2 . | . . . Level 3 . | . . . Level 4 . | . . . Level 5 . | . . . High Security . | . . . Max Security . | . . . Squads Dispatched 2 | . 2 . Investigation 1 | . 1 . Extermination . | . . . Reinforcement 1 | . 1 . Assault . | . . . Garrison . | . . . Intercept . | . . . Searches Triggered . | . . . Construction Impeded . | . . . Haulers Reinforced . | . . . Active Scanning Responses . | . . . Cargo Convoy Interrupts . | . . . Stealth | -11 -10 -10 --------- Run | Yrd Mat Min Distress Signals 1 | . 1 . Communications Jammed . | . . . Distress Signals . | . . . Times Spotted 19 | 1 15 3 Peak Tracking Total 10 | 1 10 3 Tactical Retreats . | . . . Traps | -11 -10 -10 ------- Run | Yrd Mat Min Traps Triggered . | . . . Indirectly . | . . . Trap Hack Attempts . | . . . Triggered . | . . . Disarmed . | . . . Reprogrammed . | . . . Reused . | . . . Traps Extracted . | . . . Installed . | . . . Triggered . | . . . Machines | -11 -10 -10 ---------- Run | Yrd Mat Min Machines Disabled . | . . . Max in Single Turn . | . . . Machines Repaired . | . . . Machines Dismantled . | . . . Machines Sabotaged . | . . . Overloaded Fab Kills . | . . . Hacking | -11 -10 -10 --------- Run | Yrd Mat Min Machines Accessed 4 | . 4 . Terminals 3 | . 3 . Fabricators . | . . . Repair Stations 1 | . 1 . Recycling Units . | . . . Scanalyzers . | . . . Garrison Access . | . . . Total Hacks 15 | . 15 . Successful 10 | . 10 . Failed 5 | . 5 . Catastrophic . | . . . Database Lockouts . | . . . Manual 2 | . 2 . Terminals 12 | . 12 . Fabricators . | . . . Repair Stations 3 | . 3 . Recycling Units . | . . . Scanalyzers . | . . . Garrison Access . | . . . Terminal Hacks 8 | . 8 . Record 6 | . 6 . Alert Level 1 | . 1 . Locate Traps 1 | . 1 . Fabricator Hacks . | . . . Repair Station Hacks 2 | . 2 . Scan Component 1 | . 1 . Repair 1 | . 1 . Recycling Unit Hacks . | . . . Scanalyzer . | . . . Garrison Access Hacks . | . . . Unauthorized Hacks . | . . . Terminals . | . . . Fabricators . | . . . Repair Stations . | . . . Recycling Units . | . . . Scanalyzers . | . . . Garrison Access . | . . . Data Cores Recovered . | . . . Used . | . . . Hacking Detections 3 | . 3 . Full Trace Events 1 | . 1 . Feedback Events . | . . . Feedback Blocked . | . . . Robot Schematics Acquired . | . . . Robots Built . | . . . Authchips . | . . . Time . | . . . Total Robot Build Rating . | . . . Part Schematics Acquired . | . . . Parts Built . | . . . Authchips . | . . . Time . | . . . Total Part Build Rating . | . . . Parts Repaired 1 | . 1 . Time 26 | . 26 . Parts Recycled . | . . . Recycled Matter . | . . . Retrieved Matter . | . . . Retrieved Components . | . . . Parts Scanalyzed . | . . . Part Schematics Acquired . | . . . Parts Damaged . | . . . Bothacking | -11 -10 -10 ------------ Run | Yrd Mat Min Used RIF Installer . | . . . Robots Hacked . | . . . Non-combat . | . . . Combat . | . . . Robot Hacks Applied . | . . . Relay Couplers Released . | . . . Fabnet Peak Effective % . | . . . Robots Rewired . | . . . Allies Hacked . | . . . Hacks Repelled . | . . . Allies | -11 -10 -10 -------- Run | Yrd Mat Min Total Allies . | . . . Largest Group . | . . . Highest-Rated Group . | . . . Highest-Rated Ally . | . . . Total Orders . | . . . Ally Attacks . | . . . Total Damage . | . . . Kills . | . . . Allies Corrupted . | . . . Allies Melted . | . . . Intel | -11 -10 -10 ------- Run | Yrd Mat Min Robot Analysis Total . | . . . Derelict Logs Recovered . | . . . Drone Launches . | . . . Drone Recoveries . | . . . Exploration | -11 -10 -10 ------------- Run | Yrd Mat Min Turns Passed 315 | 68 212 35 Spaces Moved 362 | 75 199 88 Core 52 | 35 17 . Treads . | . . . Legs . | . . . Wheels 194 | 40 154 . Hover . | . . . Flight 116 | . 28 88 Fastest Speed 37 | 50 37 40 Average Speed 62 | 66 71 40 Slowest Speed 80 | 80 80 40 Overloaded Moves . | . . . Propulsion Burnouts . | . . . Robots Hopped 6 | . 3 3 Cave-ins Triggered . | . . . Exploration Rate (%) 17 | 5 29 18 Regions Visited 2 Branch Regions 1 Pre-discovered Areas . | . . . Known Exits Taken . | . . . Unknown Exits Taken 2 | 1 1 . Scrap Searched . | . . . Spaces Dug . | . . . Terrain Destroyed 6 | . 6 . Melee . | . . . Projectile . | . . . AOE 6 | . 6 . Terrain Rammed . | . . . Walls Destroyed . | . . . Machines Disabled . | . . . Actions | -11 -10 -10 --------- Run | Yrd Mat Min Total 423 | 89 249 85 Wait 13 | . 13 . Move 349 | 74 192 83 Hop 5 | . 3 2 Pick Up 18 | 8 10 . Fast Attach . | . . . Attach 15 | 5 10 . Detach 2 | . 2 . Swap 3 | . 3 . Drop 2 | . 2 . Fire 16 | 2 14 . Melee . | . . . Ram . | . . . Kick . | . . . Crush . | . . . Escape Stasis . | . . . Rewire . | . . . Trap . | . . . Miscellaneous . | . . . Route ------- -11/Scrapyard -10/Materials -10/Mines History --------- Turn | Location | Event 2 | -11/Scrapyard | Met Revision 17 53 | -11/Scrapyard | Discovered new exit (range 8) 69 | -11/Scrapyard | Entered Materials 136 | -10/Materials | Repaired Wheel 223 | -10/Materials | Discovered new exit (range 9) 255 | -10/Materials | Core integrity fell below 50% 271 | -10/Materials | Core integrity fell below 20% 281 | -10/Materials | Entered Mines 287 | -10/Mines | Met a Derelict bent on vengeance 309 | -10/Mines | Build established: Mutant 310 | -10/Mines | Lost 9 parts (1p3n1u4w) 316 | -10/Mines | Destroyed by S-10 Pest with Light Assault Rifle Last Messages --------------- U-05 Engineer lays Concrete. U-05 Engineer builds a Wall. U-05 Engineer lays Concrete. O-16 Technician sends out distress signal. O-16 Technician: "IFF HANDSHAKE FAILED. SECURING TERMINAL." K-01 Serf collects debris. U-05 Engineer lays Concrete. ALERT: Hostiles spotted, dispatching reinforcements to Terminal M003. [Achievement: Uninvited Guest] Acquired Mining Laser. Acquired Propulsion Shielding. Flight Unit destroyed. Acquired Lgt. Treads. K-01 Serf collects debris. Mining Laser destroyed. LOCATION=UNKNOWN GOAL=ESCAPE T-07 Excavator is excavating. Map ----- +----------------------------------------------------+ | ?????????????????????????????? | | ?????????????????????????????? | | ?????????????????????????????? | | ?????????????????????????????? | | ?????????????????????????????? | | ?????????????????????????????? | | ?????????????????????????????? | | ?????????????????????????????? | | ?????????????????????????????? | | ?????????????????????????????? | | ?????????????##??????????????? | | ????????????? ??????????????? | | ????????????? ??????????????? | | ?????????????# ??????????????? | | ?????????????# ?????????###??? | | ??????????#### ###?????? #??? | | ??????????# #??????#t#??? | | ??????????# #??????# #??? | | ??????????# #??????# #??? | | ??????????# #??????# #??? | | ??????????# """ #??????# #??? | | ####??????# """ #??????#s#??? | | #??????# """ #??????# #??? | | #??????# #??????#s#??? | | # ######## """ ########s#??? | | # """ @#??? | | # """ ##########??? | | ########### #???????????? | | ??????????########???????????? | | ?????????????????????????????? | | ?????????????????????????????? | | ?????????????????????????????? | | ?????????????????????????????? | | ?????????????????????????????? | | ?????????????????????????????? | | ?????????????????????????????? | | ?????????????????????????????? | | ?????????????????????????????? | | | | | | | | | | | | | | | | | | | | | | | | | +----------------------------------------------------+ Best States ------------- Heat Dissipation 35 Energy Generation 10 Energy Capacity 125 Matter Stores 284 Matter Capacity 300 Sight Range 16 Terrain Scan Density 10 Core Shielding 20 Propulsion Shielding 33 Evasion (%) 62 Item Schematics ----------------- None Robot Schematics ------------------ None Fabricated ------------ Nothing Alien Tech Used ----------------- None Achievements -------------- Loot Pinata Part-time Mechanic Uninvited Guest Challenges ------------ None Game ------ Seed SkeletonEtherialTrap Manual? 0 Play Time 00:13:03 Cumulative 0.5 hours Start 2024.04.05 @ 21:41:49 End 2024.04.05 @ 21:54:35 Sessions 1 Manual Loads 0 Difficulty Rogue Special Mode None Game No. 2 Rogue 2 Adventurer 0 Explorer 0 Win Type - Total 0 Types 0/0/0/0/0/0/0/0/0 Lore% 1 Gallery% 1 Achievement% 2 Wizard Run 0 Options --------- Layout 1 ASCII 0 Keyboard 0 Movement Arrows Keybinds 0 Fullscreen 1 Font 24/Smallcaps Map View 50x35 Zoom Use 0% Tactical HUD 0 Map Filters NONE Filters NONE Steam 1 RUN: db7f323f-4f76-49ae-b6d4-f7034aa09ef4